bitfinex/quotes_ETHUSD_20250112
["timestamp","ask_amount","ask_price","bid_price","bid_amount"]
[1736696961715,0.55,3285.4,3284.9,2.1309]
[1736696961874,0.55,3285.4,3285.0,2.538659]
[1736696962071,0.15832637,3285.6,3285.3,2.1307]
[1736696962275,0.15832637,3285.6,3285.4,0.03591222]
[1736696962694,0.55,3285.5,3285.4,0.03591222]
[1736696962925,0.55,3285.5,3285.0,2.538659]
[1736696963064,0.55,3285.5,3285.2,2.16118614]
[1736696963496,0.15832637,3285.6,3285.3,2.1307]
[1736696963675,0.15832637,3285.6,3285.3,2.16646241]
[1736696964173,0.15832637,3285.6,3285.4,0.03043478]
[1736696964495,0.55,3285.9,3285.5,2.94663241]
[1736696964800,0.55,3285.9,3285.5,0.03576241]
[1736696966396,0.55,3285.9,3285.5,2.16632241]
[1736696966901,0.55,3285.7,3285.5,0.03576241]
[1736696967260,0.55,3285.7,3285.6,0.03545496]
[1736696967708,0.15836267,3286.1,3285.4,2.1610543]
[1736696967709,0.7735,3286.0,3285.5,2.13053]
[1736696967915,0.7735,3286.0,3285.6,0.03545496]
[1736696968566,0.55,3285.9,3285.6,0.03545496]
[1736696968898,0.55,3285.9,3285.6,2.16589496]
[1736696969118,0.15836267,3286.1,3285.8,2.13037]
[1736696969667,0.15836267,3286.1,3285.9,2.1303]
[1736696970004,0.15836267,3286.1,3285.9,2.16570767]
[1736696970164,1.3235,3286.0,3285.9,0.03540767]
[1736696970377,0.55,3285.9,3285.5,2.13057]
[1736696970802,0.55,3285.9,3285.4,0.8326]
[1736696971001,0.15836267,3286.1,3285.5,2.56909081]
[1736696971221,0.15836267,3286.1,3285.7,2.13039]
[1736696971926,0.55,3286.0,3285.8,2.13035]
[1736696974429,0.55,3286.0,3285.5,4.669169]
[1736696974635,0.55,3286.0,3285.6,2.13049]
[1736696974932,0.55,3286.0,3285.4,0.8326]
[1736696975592,0.55,3286.0,3285.5,2.13055]
[1736696975796,0.55,3286.0,3285.5,2.16520088]
[1736696976611,0.55,3286.0,3285.5,2.19563394]
[1736696977932,0.55,3286.0,3285.5,2.16520088]
[1736696978321,0.55,3286.0,3285.5,2.19563393]
[1736696978834,0.55,3286.0,3285.5,2.16520088]
[1736696979133,0.55,3286.0,3285.5,2.19563393]
[1736696979633,0.55,3286.0,3285.5,2.16520088]
[1736696981338,0.55,3286.0,3285.5,2.19563393]
[1736696981640,0.55,3286.0,3285.5,2.16520088]
[1736696983047,0.55,3285.8,3285.5,0.03465088]
[1736696983244,0.55,3285.6,3285.5,0.03465088]
[1736696983542,0.55,3285.6,3285.1,2.13082]
[1736696983838,0.55,3285.6,3285.5,0.03345223]
[1736696984137,0.55,3285.5,3285.1,2.13082]
[1736696984838,0.70828111,3285.5,3284.8,2.13096]
[1736696985011,0.55,3285.3,3284.8,2.13096]
[1736696985210,0.55,3285.3,3284.6,4.669779]
[1736696985424,0.55,3285.1,3284.6,4.669779]
[1736696988754,0.55,3285.1,3284.6,2.538659]
[1736696989051,0.55,3285.1,3284.7,2.13106]
[1736696990066,0.55,3285.1,3284.7,0.03044156]
[1736696990365,0.96688111,3285.5,3284.9,5.477759]
[1736696990570,0.55,3285.4,3284.9,2.538659]
[1736696990859,0.55,3285.4,3285.1,2.13078]
[1736696991218,0.55,3285.4,3285.2,0.0340119]
[1736696991663,0.55,3285.4,3284.9,2.13095]
[1736696991817,0.55,3285.4,3285.3,0.0340119]
[1736696992018,0.55,3285.4,3284.9,0.03043878]
[1736696992239,0.55,3285.4,3285.3,0.0340119]
[1736696992855,0.55,3285.4,3285.0,2.13087]
[1736696993055,0.55,3285.4,3285.3,0.0340119]
[1736696993255,0.55,3285.4,3285.0,2.13087]
[1736696993432,0.55,3285.4,3285.3,0.0340119]
[1736696993759,0.55,3285.4,3285.0,2.13087]
[1736696993970,0.55,3285.4,3284.9,2.56909778]
[1736696993971,0.55,3285.4,3285.3,0.0340119]
[1736696994163,0.55,3285.4,3285.1,2.16125845]
[1736696994870,0.55,3285.4,3285.2,2.1647519]
[1736696995069,0.15828111,3285.5,3285.2,2.5726709]
[1736696995225,0.15828111,3285.5,3285.4,2.13063]
[1736696995733,0.15828111,3285.5,3285.4,2.16483106]
[1736696996151,0.8086,3286.5,3285.6,2.13048]
[1736696996361,0.15826479,3286.1,3285.6,2.13048]
[1736696996564,0.55,3286.0,3285.5,0.03043331]
[1736696996877,0.55,3286.0,3285.7,2.1644061]
[1736696997117,0.55,3286.0,3285.7,0.0339961]
[1736696997285,1.3586,3286.0,3285.7,0.0339961]
[1736696997611,1.3586,3286.0,3285.8,0.03390151]
[1736696997919,1.3586,3286.0,3285.5,2.13052]
[1736696998063,1.3586,3286.0,3285.9,0.03390151]
[1736696998818,1.3586,3286.0,3285.5,2.13052]
[1736696999019,1.3586,3286.0,3285.9,0.03390151]
[1736696999300,1.3586,3286.0,3285.5,2.16095303]
[1736696999504,1.3586,3286.0,3285.9,0.03390151]
[1736696999701,1.3586,3286.0,3285.6,2.13049]
[1736697000182,1.3586,3286.0,3285.7,0.03390151]
[1736697002889,0.55,3285.8,3285.7,0.03390151]
[1736697003090,0.74086,3285.8,3285.1,0.8082]
[1736697003411,0.55,3285.7,3284.9,2.538659]
[1736697003614,0.55,3285.5,3285.2,0.03383846]
[1736697003801,0.55,3285.9,3284.9,2.13094]
[1736697003995,0.55,3285.5,3285.3,0.03383846]
[1736697004189,0.55,3285.5,3284.7,2.13106]
[1736697004422,0.55,3285.5,3285.4,0.03383846]
[1736697004695,0.55,3285.5,3284.7,2.13106]
[1736697004889,0.55,3285.3,3284.6,2.538659]
[1736697005095,0.55,3285.3,3284.8,0.03383846]
[1736697005419,0.898918,3285.3,3284.9,0.03383846]
[1736697005734,0.55,3285.1,3284.5,2.13118]
[1736697005890,0.55,3285.1,3285.0,0.03383846]
[1736697006081,1.3586,3285.1,3285.0,0.03383846]
[1736697006285,1.3586,3285.1,3284.3,2.13132]
[1736697006593,1.3586,3285.1,3284.4,2.13128]
[1736697006793,1.3586,3285.1,3284.4,2.16568605]
[1736697008919,1.3586,3285.1,3284.4,0.03440605]
[1736697009238,1.3586,3285.1,3284.0,3.346859]
[1736697009239,0.55,3284.9,3284.2,2.13141]
[1736697009400,0.55,3284.9,3284.5,0.03476877]
[1736697009730,0.55,3284.9,3284.2,2.13141]
[1736697009935,0.55,3284.9,3284.6,0.03477666]
[1736697010108,0.55,3284.9,3284.3,0.03495018]
[1736697011035,0.55,3284.9,3284.5,2.13121]
[1736697011206,0.55,3284.9,3284.3,2.60405382]
[1736697011207,0.55,3284.9,3284.6,2.94434226]
[1736697011408,0.55,3285.3,3284.6,2.97927666]
[1736697011731,0.55,3285.3,3284.6,0.0349344]
[1736697011732,0.55,3285.1,3284.6,0.0349344]
[1736697011988,0.55,3285.1,3284.4,2.13126]
[1736697012242,0.55,3285.1,3284.7,0.0349344]
[1736697012432,0.55,3285.1,3284.4,2.13126]
[1736697012935,0.55,3285.1,3284.3,2.538659]
[1736697013232,0.55,3284.9,3284.5,0.0349344]
[1736697013529,0.55,3284.9,3284.1,2.91426]
[1736697013738,0.55,3284.9,3284.6,0.0349344]
[1736697013929,0.55,3284.9,3284.1,2.91426]
[1736697014230,0.55,3284.9,3284.2,0.03491863]
[1736697015014,0.55,3284.9,3284.2,2.16632863]
[1736697015601,0.55,3284.7,3284.2,2.16632863]
[1736697016006,0.55,3284.7,3284.3,2.16174465]
[1736697016206,0.55,3284.7,3284.3,2.19668694]
[1736697018052,0.55,3284.7,3284.3,2.16624229]
[1736697024719,0.55,3284.7,3284.3,0.03494229]
[1736697025120,0.55,3284.7,3284.1,2.13145]
[1736697025316,0.55,3284.7,3284.4,0.03554161]
[1736697025523,0.55,3284.7,3284.1,2.13145]
[1736697026059,0.55,3284.7,3284.2,0.03554161]
[1736697030269,0.55,3284.7,3284.0,2.538659]
[1736697030469,0.55,3284.8,3284.3,0.03564418]
[1736697030768,0.55,3284.6,3284.0,2.538659]
[1736697031071,0.55,3284.6,3284.4,0.03564418]
[1736697031268,0.55,3284.6,3284.0,2.538659]
[1736697031471,0.55,3284.6,3284.5,0.03564418]
[1736697031633,0.55,3284.6,3284.0,2.538659]
[1736697032336,0.55,3284.6,3284.1,0.03564418]
[1736697032663,0.55,3284.6,3284.1,0.07397024]
[1736697035007,0.55,3284.6,3283.8,3.51905975]
[1736697035165,0.893143,3284.6,3284.2,0.07397025]
[1736697035367,0.893143,3284.6,3283.8,3.51905975]
[1736697035751,0.893143,3284.6,3283.9,0.07397025]
[1736697036648,0.55,3284.6,3283.9,0.07397025]
[1736697036847,0.55,3284.4,3283.9,0.07397025]
[1736697037983,0.55,3284.2,3283.9,0.07397025]
[1736697040248,0.55,3284.0,3283.2,3.7677]
[1736697040469,0.55,3284.0,3283.3,0.07418325]
[1736697041276,0.55,3284.0,3283.5,0.7677]
[1736697041473,0.7504,3284.4,3283.8,2.13167]
[1736697041680,0.55,3284.3,3283.8,2.13167]
[1736697041855,0.55,3284.3,3283.9,0.07418325]
[1736697045399,0.7504,3284.4,3283.9,0.10463305]
[1736697045596,0.15842485,3284.5,3284.1,2.13147]
[1736697045751,0.15842485,3284.5,3284.2,0.07450669]
[1736697046090,0.15842485,3284.5,3284.2,2.20590669]
[1736697046091,0.55,3284.4,3284.2,2.20590669]
[1736697051200,0.8075,3285.0,3284.5,2.1312]
[1736697051694,0.8075,3285.0,3284.6,2.6128738]
[1736697051896,0.15828962,3285.1,3284.6,2.64331353]
[1736697052199,0.15828962,3285.1,3284.9,2.92345]
[1736697052797,0.15828962,3285.1,3285.0,2.16132913]
[1736697053098,0.15828962,3285.1,3285.0,2.23518895]
[1736697053562,0.15828962,3285.1,3285.0,2.20474982]
[1736697054268,0.55,3285.5,3285.1,2.13077]
[1736697054480,0.55,3285.5,3285.2,0.03043585]
[1736697054682,0.55,3285.5,3285.2,0.10400386]
[1736697055680,0.55,3285.5,3285.2,4.77340286]
[1736697056001,0.55,3285.6,3285.2,4.77340286]
[1736697056968,0.55,3285.6,3285.2,2.64266286]
[1736697057171,0.15834607,3285.7,3285.5,4.669229]
[1736697057386,0.15834607,3285.7,3285.6,2.16093278]
[1736697057705,0.8005,3286.6,3285.6,2.23425636]
[1736697057903,0.55,3286.2,3285.6,0.10375636]
[1736697058065,0.55,3286.2,3285.7,2.13042]
[1736697058266,0.15825905,3286.3,3285.8,5.461479]
[1736697058490,0.15825905,3286.3,3285.9,0.07332358]
[1736697058799,0.55,3286.2,3285.9,0.07332358]
[1736697059273,0.55,3286.2,3285.9,2.20363358]
[1736697059675,0.15825905,3286.3,3286.0,2.13024]
[1736697059898,0.15825905,3286.3,3286.0,2.16066886]
[1736697060206,0.55,3286.2,3286.1,0.07253501]
[1736697060890,0.55,3286.2,3285.8,5.461519]
[1736697061203,0.55,3286.2,3286.1,0.07253501]
[1736697061703,0.55,3286.2,3285.8,5.461519]
[1736697061906,0.55,3286.2,3286.1,0.07253501]
[1736697062111,0.55,3286.2,3285.8,5.461519]
[1736697062303,0.55,3286.2,3286.1,0.07253501]
[1736697062509,0.55,3286.2,3285.8,5.461519]
[1736697062681,0.55,3286.2,3286.1,0.07253501]
[1736697062979,0.55,3286.2,3285.8,5.461519]
[1736697063591,0.55,3286.2,3285.9,0.07014135]
[1736697063814,0.8005,3286.1,3285.9,0.07014135]
[1736697064101,0.8005,3286.1,3285.6,2.13048]
[1736697064303,1.3505,3286.1,3286.0,0.06969207]
[1736697064643,1.3505,3286.1,3286.0,0.06968419]
[1736697064803,0.55,3286.0,3285.6,2.13048]
[1736697064990,0.55,3286.0,3285.7,0.06968419]
[1736697065207,0.55,3286.0,3285.4,2.13063]
[1736697065703,0.55,3286.0,3285.5,0.06968419]
[1736697066908,0.55,3286.0,3285.5,4.73890319]
[1736697067121,0.15825905,3286.3,3285.8,2.538659]
[1736697067309,0.15825905,3286.3,3285.9,2.16072983]
[1736697067486,0.55,3286.2,3285.9,2.230548]
[1736697067687,0.55,3286.2,3285.9,0.100248]
[1736697068012,0.15825905,3286.3,3285.9,2.23055809]
[1736697069084,0.55,3286.2,3285.9,2.23055809]
[1736697071327,0.55,3286.2,3285.9,0.10024809]
[1736697071501,0.55,3286.2,3286.0,2.13022]
[1736697072238,0.55,3286.2,3286.1,0.06981817]
[1736697072691,0.15825905,3286.3,3286.1,2.19994817]
[1736697073326,0.15825905,3286.3,3286.2,2.1605382]
[1736697073626,0.15825905,3286.3,3286.2,2.13011]
[1736697073932,0.15825905,3286.3,3286.2,2.19933703]
[1736697075019,0.15825905,3286.3,3286.2,0.06922703]
[1736697075396,0.15825905,3286.3,3286.0,2.13024]
[1736697075734,0.15825905,3286.3,3286.1,0.09711842]
[1736697075901,0.15825905,3286.3,3286.1,2.22728842]
[1736697076306,0.15825905,3286.3,3286.1,2.19686106]
[1736697079715,0.15825905,3286.3,3286.1,0.06669106]
[1736697080113,0.15825905,3286.3,3286.1,0.03042745]
[1736697080422,0.15825905,3286.3,3286.2,0.06665954]
[1736697080612,0.15825905,3286.3,3286.1,2.16060732]
[1736697080817,0.15825905,3286.3,3286.2,0.06665954]
[1736697082027,0.70825905,3286.3,3286.2,0.06665954]
[1736697082443,0.55,3286.2,3285.9,2.16071981]
[1736697082801,0.15825905,3286.3,3285.9,2.16071981]
[1736697084429,0.15825905,3286.3,3286.0,2.13024]
[1736697084636,0.15825905,3286.3,3286.2,2.13011]
[1736697085149,0.7819,3287.3,3286.5,2.12992]
[1736697085306,0.15831778,3287.1,3286.5,2.12992]
[1736697085509,0.55,3287.0,3286.5,2.12992]
[1736697086453,0.55,3287.0,3286.3,2.90734]
[1736697086635,0.55,3286.8,3286.3,2.90734]
[1736697087419,0.55,3286.8,3286.4,2.1604048]
[1736697087704,0.55,3286.8,3286.4,2.12998]
[1736697087929,0.55,3286.8,3286.4,2.1604048]
[1736697088531,0.55,3286.8,3286.5,2.12991]
[1736697088720,0.95801778,3287.1,3286.7,2.12979]
[1736697088922,0.95801778,3287.1,3286.4,2.538659]
[1736697089124,0.95801778,3287.1,3286.7,2.12978]
[1736697089327,0.95801778,3287.1,3286.8,0.03042115]
[1736697089522,0.95801778,3287.1,3286.7,2.12978]
[1736697090426,0.95801778,3287.1,3286.8,2.16014112]
[1736697091049,0.15831778,3287.1,3286.8,2.16014112]
[1736697091552,0.15831778,3287.1,3286.8,2.94694112]
[1736697092059,0.15831778,3287.1,3286.8,2.91652]
[1736697092751,0.15831778,3287.1,3286.8,2.12972]
[1736697092951,0.15831778,3287.1,3286.6,2.12983]
[1736697094263,0.15831778,3287.1,3286.7,2.16018095]
[1736697094608,0.15831778,3287.1,3286.7,2.12976]
[1736697095119,0.15831778,3287.1,3286.8,0.030421]
[1736697095577,0.15831778,3287.1,3286.8,2.160131]
[1736697095869,0.15831778,3287.1,3286.9,0.06597415]
[1736697096361,0.7997,3287.0,3286.9,0.06597415]
[1736697096541,0.7997,3287.0,3286.6,2.12983]
[1736697097060,0.7997,3287.0,3286.7,0.06554082]
[1736697097553,0.7997,3287.0,3286.7,2.19531082]
[1736697097849,0.15831778,3287.1,3286.7,2.19531082]
[1736697098857,0.15831778,3287.1,3286.8,0.03042105]
[1736697099243,0.15831778,3287.1,3286.9,0.06554082]
[1736697099663,0.15831778,3287.1,3286.9,2.19520082]
[1736697100014,0.15831778,3287.1,3286.9,0.06554082]
[1736697100727,0.15831778,3287.1,3286.8,0.030421]
[1736697100927,0.70831778,3287.1,3287.0,0.06335613]
[1736697101170,0.70831778,3287.1,3286.8,0.030421]
[1736697101523,0.70831778,3287.1,3286.9,0.06335613]
[1736697102604,0.70831778,3287.1,3286.8,2.16009127]
[1736697102968,0.70831778,3287.1,3286.9,0.06335613]
[1736697103662,0.15831778,3287.1,3286.9,0.06335613]
[1736697103864,2.12887,3288.2,3287.1,2.12948]
[1736697104165,0.15827737,3287.7,3287.4,2.12933]
[1736697104363,0.55,3287.6,3287.2,2.15986723]
[1736697104563,0.55,3287.6,3287.5,0.06328524]
[1736697104802,0.55,3287.6,3287.2,2.15986723]
[1736697105399,0.55,3287.6,3287.3,0.06324586]
[1736697105902,0.55,3287.6,3287.4,0.06324586]
[1736697106090,0.55,3287.6,3287.2,2.15986723]
[1736697106395,0.55,3287.6,3287.5,0.06324586]
[1736697106396,1.3051,3287.6,3287.5,0.06324586]
[1736697106595,1.3051,3287.6,3287.2,2.1598672]
[1736697106801,1.3051,3287.6,3287.5,0.06324586]
[1736697107002,1.3051,3287.6,3287.2,2.1598672]
[1736697107195,1.3051,3287.6,3287.5,0.06324586]
[1736697107390,1.3051,3287.6,3287.2,2.1598672]
[1736697107687,1.3051,3287.6,3287.2,2.15986726]
[1736697108015,1.3051,3287.6,3287.3,0.06324586]
[1736697108392,1.3051,3287.6,3287.2,2.15986726]
[1736697108593,1.3051,3287.6,3287.4,0.06324586]
[1736697108790,1.3051,3287.6,3287.2,2.15986726]
[1736697108998,1.3051,3287.6,3287.5,0.06324586]
[1736697109197,1.3051,3287.6,3287.2,2.15986728]
[1736697109372,1.3051,3287.6,3287.5,0.06324586]
[1736697109574,1.3051,3287.6,3287.2,2.15986728]
[1736697110107,1.3051,3287.6,3287.3,0.06281273]
[1736697110281,1.3051,3287.6,3287.2,2.15986728]
[1736697110613,1.3051,3287.6,3287.4,0.06281273]
[1736697110800,1.3051,3287.6,3287.2,2.15986728]
[1736697111007,1.3051,3287.6,3287.5,0.06281273]
[1736697111174,1.3051,3287.6,3287.2,2.15986728]
[1736697111376,1.3051,3287.6,3287.5,0.06281273]
[1736697111600,1.3051,3287.6,3287.4,1.200755]
[1736697111803,1.3051,3287.6,3287.5,0.06281273]
[1736697113072,0.55,3287.6,3287.2,3.330205]
[1736697113274,0.55,3287.6,3287.3,0.06281273]
[1736697113579,0.15827737,3287.7,3287.4,1.971355]
[1736697113774,0.8068,3288.3,3287.6,1.200755]
[1736697114107,0.8068,3288.3,3288.0,1.200755]
[1736697114307,0.8068,3288.3,3287.8,3.329765]
[1736697114487,0.55,3288.2,3288.1,0.06241899]
[1736697114686,0.55,3288.2,3287.8,3.329765]
[1736697114888,0.55,3288.2,3288.1,0.06241899]
[1736697115112,0.55,3288.2,3287.8,3.329765]
[1736697115407,0.55,3288.2,3287.9,0.06241899]
[1736697116915,0.55,3288.2,3287.6,1.200755]
[1736697116916,0.55,3288.1,3287.6,1.200755]
[1736697117112,0.1632148,3288.4,3287.7,0.06204112]
[1736697117113,0.55,3287.9,3287.7,0.06204112]
[1736697117412,0.55,3287.9,3287.4,2.12932]
[1736697117615,0.55,3287.9,3287.8,0.06203325]
[1736697117789,0.55,3287.9,3287.5,0.03041491]
[1736697117995,0.55,3287.9,3287.8,0.06203325]
[1736697118508,0.55,3287.9,3287.5,0.03041491]
[1736697118702,0.55,3287.9,3287.6,0.06203325]
[1736697118914,0.55,3287.9,3287.4,2.12932]
[1736697119219,0.55,3287.9,3287.5,2.22182049]
[1736697119929,0.1632148,3288.4,3287.8,2.12907]
[1736697120109,0.9700148,3288.4,3287.8,2.12907]
[1736697120421,0.9700148,3288.4,3287.7,0.03041193]
[1736697120422,0.9700148,3288.4,3287.9,2.22120322]
[1736697121002,0.55,3288.3,3287.9,2.22120322]
[1736697121611,0.55,3288.3,3287.9,0.09219322]
[1736697121820,0.55,3288.3,3288.0,2.12894]
[1736697122307,0.1632148,3288.4,3288.1,2.19065128]
[1736697122520,0.1632148,3288.4,3288.1,2.96125128]
[1736697122950,0.1632148,3288.4,3288.1,2.19065128]
[1736697123310,0.55,3288.3,3288.1,0.06178128]
[1736697123525,0.55,3288.3,3287.9,2.15938975]
[1736697123726,0.55,3288.3,3288.2,0.06178128]
[1736697123948,0.55,3288.3,3287.9,2.15938975]
[1736697124115,0.55,3288.3,3288.2,0.06178128]
[1736697124314,0.55,3288.3,3287.9,2.15938975]
[1736697124625,0.55,3288.3,3288.0,2.19071128]
[1736697125027,0.1632148,3288.4,3288.1,2.15928131]
[1736697125222,0.1632148,3288.4,3288.3,2.12875]
[1736697125223,0.005,3288.4,3288.3,2.12875]
[1736697125456,0.005,3288.4,3288.3,2.15915627]
[1736697125744,0.005,3288.4,3288.3,2.22044959]
[1736697126616,0.005,3288.4,3288.3,10.22044959]
[1736697126816,0.005,3288.4,3288.3,10.19004332]
[1736697128337,0.005,3288.4,3288.3,11.04754332]
[1736697129249,0.005,3288.4,3288.3,11.02504332]
[1736697130923,0.005,3288.4,3288.3,11.01754332]
[1736697131132,0.005,3288.4,3288.3,8.16638332]
[1736697131340,0.005,3288.4,3288.3,6.01754332]
[1736697131648,0.005,3288.4,3288.3,8.34029332]
[1736697133030,0.005,3288.4,3288.3,7.51279332]
[1736697133568,0.005,3288.4,3288.3,0.06129332]
[1736697133928,0.005,3288.4,3288.1,4.66519255]
[1736697134129,0.005,3288.4,3288.2,0.059995]
[1736697134330,0.005,3288.4,3288.2,0.09040317]
[1736697134733,0.005,3288.4,3288.2,0.059995]
[1736697135137,0.005,3288.4,3288.2,0.09040316]
[1736697135762,0.005,3288.4,3288.2,0.059995]
[1736697135965,0.005,3288.4,3288.2,0.09040309]
[1736697136143,0.005,3288.4,3288.2,0.059995]
[1736697136344,0.005,3288.4,3287.9,2.12899]
[1736697136548,0.005,3288.4,3288.0,0.06017594]
[1736697137280,0.555,3288.4,3288.0,0.06017594]
[1736697138674,0.7882,3288.3,3288.0,0.06017594]
[1736697139170,0.7882,3288.3,3288.1,0.06035691]
[1736697139550,0.7882,3288.3,3287.7,2.12911]
[1736697139750,1.3382,3288.3,3288.2,0.06035691]
[1736697139966,1.3382,3288.3,3287.7,2.12911]
[1736697140269,1.3382,3288.3,3288.2,0.06035691]
[1736697140439,1.3382,3288.3,3287.7,2.12911]
[1736697140863,1.3382,3288.3,3287.8,0.06035691]
[1736697141057,0.55,3288.2,3287.5,0.8275]
[1736697141276,0.55,3288.0,3287.3,2.12938]
[1736697141446,1.3382,3288.0,3287.9,0.06035691]
[1736697141663,1.684904,3288.0,3287.2,2.12946]
[1736697141838,1.3382,3288.0,3287.2,2.12946]
[1736697142042,1.3382,3288.0,3287.9,0.06035691]
[1736697142258,0.55,3287.8,3286.9,2.53631255]
[1736697142503,0.7882,3287.6,3286.7,0.8275]
[1736697142653,0.55,3287.5,3286.7,2.95727]
[1736697142856,0.55,3287.6,3286.7,2.95727]
[1736697143055,0.55,3287.4,3286.7,2.95727]
[1736697144004,0.7882,3287.3,3286.7,2.12977]
[1736697144794,0.55,3287.2,3286.4,3.58045221]
[1736697145060,0.55,3287.2,3286.6,2.12983]
[1736697145906,0.55,3287.2,3286.7,2.16021104]
[1736697148406,0.55,3287.2,3286.7,2.12979]
[1736697149325,0.55,3287.2,3286.8,0.03042106]
[1736697149989,0.8017,3287.6,3286.9,3.35471255]
[1736697150173,0.8017,3287.6,3287.1,2.12947]
[1736697150500,0.8017,3287.6,3287.2,0.03041782]
[1736697150711,0.8017,3287.6,3287.1,2.12947]
[1736697153024,0.15849903,3287.8,3287.5,2.12923]
[1736697153226,0.7566,3287.9,3287.5,2.12923]
[1736697154428,0.7566,3287.9,3287.6,0.03041459]
[1736697154589,0.15844028,3288.1,3287.7,2.12913]
[1736697154768,0.15844028,3288.1,3287.7,2.15954263]
[1736697155786,0.15844028,3288.1,3287.8,0.0620017]
[1736697156236,0.15844028,3288.1,3287.7,2.15954265]
[1736697156394,0.15844028,3288.1,3287.9,0.0620017]
[1736697156576,0.7566,3288.2,3287.8,2.12907]
[1736697156776,0.55,3288.1,3288.0,0.0620017]
[1736697156978,0.55,3288.1,3287.8,2.12907]
[1736697157202,0.55,3288.1,3288.0,0.0620017]
[1736697157409,0.55,3288.1,3287.7,0.03041265]
[1736697157611,0.55,3288.1,3288.0,0.0620017]
[1736697157795,0.55,3288.1,3287.7,0.03041266]
[1736697158091,0.55,3288.1,3287.6,2.12919]
[1736697158696,0.55,3288.1,3287.7,0.0620017]
[1736697159610,0.55,3288.1,3287.7,0.09241437]
[1736697159922,0.55,3288.1,3287.7,0.0620017]
[1736697160290,0.55,3288.1,3287.7,0.09241437]
[1736697160826,0.55,3288.1,3287.7,0.0620017]
[1736697161743,0.55,3288.0,3287.7,0.0620017]
[1736697161948,0.55,3287.8,3287.2,4.66573255]
[1736697162254,0.55,3287.8,3287.3,0.06174194]
[1736697162592,0.55,3287.8,3287.3,0.0304162]
[1736697162899,0.55,3287.8,3287.4,0.06174194]
[1736697163103,0.55,3287.8,3287.3,2.1597962]
[1736697163323,0.55,3287.8,3287.4,0.06174194]
[1736697163632,0.55,3287.8,3287.3,2.1597962]
[1736697163846,0.55,3287.8,3287.5,0.06174194]
[1736697163992,0.55,3287.8,3287.3,2.1597962]
[1736697164192,0.55,3287.8,3287.6,0.06174194]
[1736697164392,0.55,3287.8,3287.3,0.0304162]
[1736697164638,0.55,3287.8,3287.7,0.06174194]
[1736697164859,0.55,3287.8,3287.4,2.12932]
[1736697165050,0.55,3287.8,3287.7,0.06174194]
[1736697165248,0.55,3287.8,3287.3,0.0304162]
[1736697165450,0.55,3287.8,3287.3,2.12937]
[1736697165613,0.55,3287.8,3287.4,2.19107194]
[1736697178453,0.55,3287.8,3287.4,0.06174194]
[1736697178779,0.55,3287.8,3287.1,2.12953]
[1736697178979,0.55,3287.6,3287.2,0.06153727]
[1736697180488,0.55,3287.6,3287.2,2.19096727]
[1736697180855,0.55,3287.6,3287.3,2.12939]
[1736697181289,0.55,3287.6,3287.4,0.06168684]
[1736697181593,0.55,3287.6,3287.2,0.03041781]
[1736697181795,0.55,3287.6,3287.3,0.06168684]
[1736697181999,0.55,3287.6,3287.2,0.0304178]
[1736697182189,0.55,3287.6,3287.3,0.06168684]
[1736697182497,0.55,3287.6,3287.0,4.66588255]
[1736697182965,0.55,3287.6,3287.1,2.19119684]
[1736697184077,0.55,3287.6,3287.2,0.03041781]
[1736697184429,0.55,3287.6,3287.1,2.12951]
[1736697184724,0.8042,3287.5,3287.3,0.06168684]
[1736697184981,0.55,3287.2,3286.7,2.12978]
[1736697185154,0.55,3287.0,3286.2,0.7928]
[1736697185443,0.55,3286.8,3286.3,2.13005]
[1736697185590,0.55,3286.8,3286.3,0.06168684]
[1736697185789,0.55,3286.8,3286.1,2.13017]
[1736697185790,0.8042,3287.0,3286.2,0.03042662]
[1736697186001,0.55,3286.9,3286.2,0.03042662]
[1736697186306,1.3542,3286.8,3286.3,0.06168684]
[1736697186492,0.55,3286.6,3286.3,0.06168684]
[1736697186692,0.55,3286.6,3285.9,4.66660255]
[1736697187023,0.55,3286.4,3285.9,2.13029]
[1736697187194,0.55,3286.4,3286.0,0.06168684]
[1736697187721,2.1298,3286.7,3286.0,0.06168684]
[1736697187893,0.55,3286.4,3285.7,2.13043]
[1736697188094,0.55,3286.2,3286.1,0.06168684]
[1736697188325,0.55,3286.2,3285.7,2.13043]
[1736697188630,0.7547,3286.6,3285.9,2.13028]
[1736697189247,0.55,3286.5,3286.0,0.06168684]
[1736697189607,0.55,3286.5,3285.9,2.13027]
[1736697189923,0.55,3286.5,3286.0,0.06168684]
[1736697190341,0.19042,3286.9,3286.0,0.06168684]
[1736697190662,0.55,3286.3,3285.6,2.53631255]
[1736697190822,0.55,3286.1,3285.6,2.53631255]
[1736697191143,0.55,3286.1,3285.5,2.13056]
[1736697192144,0.55,3286.1,3285.2,3.7706]
[1736697192357,0.55,3285.9,3285.1,2.13082]
[1736697192662,0.55,3285.9,3285.2,2.1307]
[1736697192951,0.55,3285.9,3285.3,2.13068]
[1736697193158,0.7547,3286.7,3285.5,2.53631255]
[1736697193357,0.37547,3286.6,3285.7,2.13043]
[1736697193560,0.55,3286.3,3285.7,2.13043]
[1736697194112,0.55,3286.3,3285.5,4.66685255]
[1736697194545,0.55,3286.3,3285.6,0.03043175]
[1736697194749,0.55,3286.3,3285.5,4.66685255]
[1736697195009,0.55,3286.1,3285.3,2.13068]
[1736697195358,0.55,3285.9,3285.3,2.13068]
[1736697195523,0.55,3285.9,3285.4,2.93164279]
[1736697197511,0.7547,3286.0,3285.4,0.80103279]
[1736697197679,0.7547,3286.2,3285.5,2.13052]